[Event "Silver Lake Festival 2022"]
[Site "Veliko Gradiste"]
[Date "2022.06.20"]
[Round "3.9"]
[White "Efremov, Vladislav"]
[Black "Tadic, Stefan"]
[Result "1/2-1/2"]
[ECO "E12"]
[WhiteElo "2125"]
[BlackElo "2358"]
[Annotator "RC"]
[PlyCount "59"]
[EventDate "2022.06.16"]
[EventType "swiss"]
[EventCountry "SRB"]
[SourceTitle "playchess.com"]
[Source "ChessBase"]
[SourceQuality "1"]
[TimeControl "5400+30"]

1. d4 {[%emt 0:00:08]} Nf6 {[%emt 0:00:34]} 2. c4 {[%emt 0:00:15]} e6 {[%emt 0:00:28]} 3. Nf3 {[%emt 0:00:38]} b6 {[%emt 0:01:02]} 4. a3 {[%emt 0:03:10]} Bb7 {[%emt 0:00:38]} 5. Nc3 {[%emt 0:00:47]} g6 {[%emt 0:01:12]} 6. d5 {[%emt 0:07:48]} Bg7 {[%emt 0:01:01]} 7. g3 {[%emt 0:07:09]} exd5 {[%emt 0:00:22]} 8. cxd5 {[%emt 0:00:13]} O-O {[%emt 0:00:05]} 9. Bg2 {[%emt 0:00:24]} Re8 {[%emt 0:00:05]} 10. O-O {[%emt 0:14:09]} Na6 {[%emt 0:00:45]} 11. Nd4 {[%emt 0:10:25]} Nc5 {[%emt 0:12:22]} 12. Bf4 {[%emt 0:02:01]} Nce4 {[%emt 0:10:43]} 13. Ndb5 {[%emt 0:04:45]} Nxc3 {[%emt 0:05:14]} 14. Nxc3 {[%emt 0:00:07]} c6 {[%emt 0:00:05]} 15. Rc1 {[%emt 0:19:07]} Rc8 {[%emt 0:12:36]} 16. dxc6 {[%emt 0:01:57]} dxc6 {[%emt 0:00:34]} 17. Nb5 {[%emt 0:06:20]} cxb5 {[%emt 0:15:23]} 18. Bxb7 {[%emt 0:00:09]} Rxc1 {[%emt 0:00:57]} 19. Bxc1 {[%emt 0:00:56]} Qe7 {[%emt 0:02:38]} 20. Bf3 {[%emt 0:00:43]} b4 {[%emt 0:03:56]} 21. Qa4 {[%emt 0:02:01]} bxa3 {[%emt 0:00:13]} 22. bxa3 {[%emt 0:00:03]} Rc8 {[%emt 0:05:59]} 23. Rd1 {[%emt 0:01:57]} Rd8 {[%emt 0:08:13]} 24. Rxd8+ Qxd8 {[%emt 0:00:01]} 25. Bg5 {[%emt 0:03:08]} Qe7 {[%emt 0:05:13]} 26. Qc6 {[%emt 0:02:09]} h6 {[%emt 0:00:21]} 27. Bxf6 {[%emt 0:00:08]} Bxf6 {[%emt 0:00:06]} 28. a4 {[%emt 0:00:16]} Bd4 {[%emt 0:02:06]} 29. e3 {[%emt 0:00:32]} Bc5 {[%emt 0:00:33]} 30. Kg2 {[%emt 0:00:15]} 1/2-1/2

[Event "Silver Lake Festival 2022"]
[Site "Veliko Gradiste"]
[Date "2022.06.20"]
[Round "3.10"]
[White "Govedarica, Radovan"]
[Black "Srdanovic, Jovana"]
[Result "*"]
[ECO "B22"]
[WhiteElo "2289"]
[BlackElo "2127"]
[Annotator "TA"]
[PlyCount "72"]
[EventDate "2022.06.16"]
[EventType "swiss"]
[EventCountry "SRB"]
[SourceTitle "playchess.com"]
[Source "ChessBase"]
[SourceQuality "1"]
[TimeControl "5400+30"]

{[%evp 16,72,-29,-34,-21,-41,-52,-76,-106,-137,7,-31,0,-225,-141,-177,-164,-263,-255,-375,-368,-353,-340,-366,-359,-361,-334,-309,-300,-289,-258,-322,-242,-320,-313,-315,-318,-429,-426,-466,-425,-481,-479,-472,-448,-457,-340,-371,0,-426,0,-342,0,-410,0,-318,0,-359,0]} 1. e4 {[%emt 0:00:01][%cal Be2e4,Be4e5][%mdl 32]} c5 {[%emt 0:00:59]} 2. Nf3 {[%emt 0:00:02]} e6 {[%emt 0:00:15]} 3. c3 {[%emt 0:00:12]} Nf6 {[%emt 0:00:19]} 4. e5 {[%emt 0:00:49]} Nd5 {[%emt 0:00:09]} 5. d4 {[%emt 0:01:24]} cxd4 {[%emt 0:00:15]} 6. Qxd4 {[%emt 0:00:07]} Nc6 {[%emt 0:00:10]} 7. Qe4 {[%emt 0:00:01]} f5 {[%emt 0:00:14]} 8. exf6 {[%emt 0:02:46]} Nxf6 {[%emt 0:00:26]} 9. Qh4 {[%emt 0:00:26]} e5 {[%emt 0:00:32] Hoping for ...d5. B22: Sicilian: 2 c3.} 10. Bg5 {[%emt 0:01:38]} d5 {[%emt 0:04:45]} 11. Nbd2 {[%emt 0:06:10]} Be7 {[%emt 0:10:55] Black is better.} 12. Bb5 {[%emt 0:02:27] [#]} Qc7 {[%emt 0:05:36]} (12... O-O $1 $17 {White must now prevent ...e4.} 13. O-O-O (13. Bxc6 bxc6 14. O-O Qe8 $17) 13... e4 14. Nxe4 Nxe4 15. Bxc6 Nxg5 16. Bxd5+ Kh8 17. Bxb7 {[#]} Qc7 $1 18. Bxa8 Nxf3) 13. O-O {[%emt 0:00:42]} (13. c4 {is interesting.} e4 14. O-O exf3 15. cxd5 fxg2 16. Rfe1) 13... O-O {[%emt 0:02:09] [#]} (13... e4 {looks sharper.} 14. c4 exf3 15. cxd5 fxg2 16. Rfe1 Nxd5 17. Bc4 Be6) 14. Qa4 $146 {[%emt 0:02:57]} (14. c4 $1 $11) ({Predecessor:} 14. c4 d4 15. Rfe1 h6 16. Bxf6 Bxf6 17. Qg3 Nb4 18. Nxd4 Qd8 19. Qb3 Qxd4 20. Qxb4 {0-1 (29) Skibbe,D (2054)-Carow,A (2114) Germany 2015}) 14... a6 {[%emt 0:08:15][%cal Oa6b5]} 15. Bxc6 {[%emt 0:05:05]} bxc6 {[%emt 0:00:09]} 16. c4 {[%emt 0:02:07]} (16. Bh4 {was called for.}) 16... e4 $19 {[%emt 0:11:45]} 17. Bxf6 {[%emt 0:02:56]} (17. cxd5 {was worth a try.} exf3 18. Qxc6) 17... Bxf6 {[%emt 0:00:56][%cal Be7f6,Bf6b2,Bb2e5][%mdl 32]} (17... Rxf6 $2 18. Nd4 $19) 18. Ne1 {[%emt 0:00:01]} Bxb2 {[%emt 0:01:03] This bishop pair is nice.} 19. Rb1 {[%emt 0:00:01]} Be5 {[%emt 0:02:02]} 20. g3 {[%emt 0:00:07]} Bh3 {[%emt 0:02:58]} 21. Ng2 {[%emt 0:00:01]} Kh8 {[%emt 0:03:18]} 22. Rbc1 {[%emt 0:06:35]} Qb6 {[%emt 0:08:29]} 23. Rb1 {[%emt 0:08:17]} Qc5 {[%emt 0:08:18] aiming for ...Bd4.} 24. Nb3 {[%emt 0:01:55]} Qd6 {[%emt 0:01:53]} ({Avoid the trap} 24... Qxc4 $2 25. Qxc4 dxc4 26. Nd2 $19) 25. cxd5 {[%emt 0:01:34]} cxd5 {[%emt 0:00:09]} 26. Rbd1 {[%emt 0:00:13]} Rad8 {[%emt 0:00:47][%cal Ba8d8,Bd8c8,Bc8c4][%mdl 32]} 27. Nd4 {[%emt 0:05:14]} Rc8 {[%emt 0:01:48] Inhibits Qc6.} 28. Rd2 {[%emt 0:05:39]} Rc4 {[%emt 0:03:21]} 29. Qd1 {[%emt 0:00:28]} Qf6 {[%emt 0:00:30]} 30. Nb3 {[%emt 0:03:25]} Qf3 {[%emt 0:05:04][%csl Gh3][%cal Rf3g2]} 31. Nh4 {[%emt 0:12:51]} Qf6 {[%emt 0:03:17] Threatens to win with ...e3.} 32. Ng2 {[%emt 0:00:35]} Qf3 {[%emt 0:10:59][%csl Gh3][%cal Rf3g2]} 33. Nh4 {[%emt 0:00:06]} Qf6 {[%emt 0:00:33]} 34. Ng2 {[%emt 0:00:08]} Qf3 {[%emt 0:00:44][%csl Gh3][%cal Rf3g2]} 35. Nh4 Qf6 {[%emt 0:00:30]} 36. Ng2 Qf3 $2 {[%emt 0:04:58] Weighted Error Value: White=0.29 (precise) /Black=0.93} (36... d4 $19 37. f3 exf3) *

[Event "Silver Lake Festival 2022"]
[Site "Veliko Gradiste"]
[Date "2022.06.20"]
[Round "3.11"]
[White "Mamedov, Edgar"]
[Black "Manakova, Maria"]
[Result "1/2-1/2"]
[ECO "A84"]
[WhiteElo "2004"]
[BlackElo "2278"]
[Annotator "TA"]
[PlyCount "103"]
[EventDate "2022.06.16"]
[EventType "swiss"]
[EventCountry "SRB"]
[SourceTitle "playchess.com"]
[Source "ChessBase"]
[SourceQuality "1"]
[TimeControl "5400+30"]

{[%evp 13,103,33,30,18,48,18,22,10,16,0,1,0,0,-6,0,-22,-25,-38,-15,-8,-7,-27,-4,-27,-15,-23,6,0,15,0,-14,-18,0,0,0,0,0,0,-8,-15,0,0,0,0,59,11,12,0,0,0,318,305,270,225,275,304,391,358,342,122,308,222,231,150,162,158,157,74,189,0,156,119,190,122,200,197,226,174,183,159,147,0,0,-8,0,0,0,0,0,0,8,8]} 1. d4 {[%emt 1:31:00]} e6 {[%emt 1:31:00]} 2. c4 {[%emt 0:00:30]} f5 {[%emt 0:00:30]} 3. g3 {[%emt 0:00:30]} Nf6 {[%emt 0:00:30]} 4. Nf3 {[%emt 0:00:30]} b6 {[%emt 0:00:30]} 5. Bg2 {[%emt 0:00:30]} Bb7 {[%emt 0:00:30]} 6. O-O {[%emt 0:00:30]} Be7 {[%emt 0:00:30]} 7. Nc3 {[%emt 0:00:30]} Ne4 {[%emt 0:00:30]} 8. Qc2 {[%emt 0:00:30] 8.Qc2 has become a bit dusty these days. A84: Dutch Defence: 2 c4 Miscellaneous.} Bf6 {[%emt 0:00:30]} 9. Bf4 {[%emt 0:00:30]} (9. Ne5 $5 {[%cal Rc3e4]}) 9... Nxc3 {[%emt 0:00:30]} 10. Qxc3 {[%emt 0:00:30]} d6 {[%emt 0:00:30]} 11. Rfd1 {[%emt 0:00:30]} Qe7 {[%emt 0:00:30] [#]} 12. Qb3 $146 {[%emt 0:00:30][%cal Oc4c5]} ({Predecessor:} 12. Qa3 g5 13. Nxg5 Bxg2 14. Kxg2 Bxg5 15. Qf3 Bxf4 16. Qxa8 Kd7 17. gxf4 Qg7+ 18. Kh1 {1-0 (51) Skatchkov,P (2491)-Belousov,A (2218) Uljanovsk 2009}) 12... Nd7 {[%emt 0:00:30]} 13. Rac1 {[%emt 0:00:30][%cal Oc4c5]} Be4 {[%emt 0:00:30]} 14. Qa4 {[%emt 0:00:30][%cal Oc4c5]} O-O {[%emt 0:00:30]} 15. Ne1 {[%emt 0:00:30]} Bxg2 {[%emt 0:00:30]} 16. Nxg2 {[%emt 0:00:30]} g5 {[%emt 0:00:30]} 17. Be3 {[%emt 0:00:30][%cal Oc4c5]} e5 {[%emt 0:00:30]} 18. dxe5 {[%emt 0:00:30]} (18. c5 {is more complex.} f4 19. cxd6 cxd6 20. Bd2) 18... Nxe5 {[%emt 0:00:30]} 19. b4 {[%emt 0:00:30]} c5 {[%emt 0:00:30]} 20. Rd5 {[%emt 0:00:30]} Qe6 {[%emt 0:00:30][%cal Oe5c4]} 21. bxc5 {[%emt 0:00:30]} dxc5 {[%emt 0:00:30]} ({Don't do} 21... bxc5 22. Qa6 $14) 22. Rcd1 {[%emt 0:00:30]} Be7 {[%emt 0:00:30]} 23. Qc2 {[%emt 0:00:30]} Nc6 {[%emt 0:00:30]} 24. a3 {[%emt 0:00:30] Against Nb4} Rad8 {[%emt 0:00:30]} 25. Qd2 {[%emt 0:00:30]} h6 {[%emt 0:00:30]} 26. f3 {[%emt 0:00:30]} Bf6 {[%emt 0:00:30]} 27. h4 {[%emt 0:00:30][%cal Rh4g5]} Ne5 {[%emt 0:00:30]} 28. Qc2 {[%emt 0:00:30]} Nf7 {[%emt 0:00:30]} (28... Rfe8 $11) 29. hxg5 {[%emt 0:00:30]} (29. g4 $14) 29... hxg5 $11 {[%emt 0:00:30]} 30. Kf2 {[%emt 0:00:30][%cal Bg1f2,Bf2g2,Bg2h1][%mdl 32]} Kg7 {[%emt 0:00:30]} 31. Bc1 {[%emt 0:00:30]} Ne5 $2 {[%emt 0:00:30][%mdl 8192] [#]} (31... Rh8 $11) 32. Ne3 $1 $18 {[%emt 0:00:30]} Kf7 {[%emt 0:00:30]} (32... Rxd5 $2 33. cxd5 Qd7 34. Rh1 (34. Qxf5 Qxf5 35. Nxf5+ Kg6 $16)) 33. Nxf5 {[%emt 0:00:30] And now Bb2 would win.} Rh8 {[%emt 0:00:30]} 34. Kg2 {[%emt 0:00:30] Against Rh2+} g4 {[%emt 0:00:30]} 35. f4 {[%emt 0:00:30]} Nc6 {[%emt 0:00:30]} 36. e4 $2 {[%emt 0:00:30]} (36. Nd6+ $18 {has better winning chances.} Kg7 37. Bb2) 36... Bd4 $2 {[%emt 0:00:30]} (36... Nd4 $16 37. Nxd4 Bxd4) 37. Rxd8 {[%emt 0:00:30] Chess con chili.} Nxd8 {[%emt 0:00:30]} 38. Rh1 {[%emt 0:00:30]} Rxh1 {[%emt 0:00:30]} 39. Kxh1 {[%emt 0:00:30]} Nc6 {[%emt 0:00:30]} 40. e5 {[%emt 0:00:30]} (40. Kg2 $142) 40... Kf8 {[%emt 0:00:30]} (40... Ne7 $16 {was worth a try.} 41. Nxd4 cxd4) 41. Nd6 $2 {[%emt 0:00:30]} ({Only move:} 41. Be3 $18) 41... Qh6+ $2 {[%emt 0:00:30]} ({Black should play} 41... Kg8 $1 $11) 42. Qh2 $16 {[%emt 0:00:30] White is more active.} Qxh2+ {[%emt 0:00:30]} 43. Kxh2 {[%emt 0:00:30][%mdl 4096] Endgame KBN-KBN} Na5 {[%emt 0:00:30]} (43... Ke7 $16 44. Kg2 Kd7) 44. Bd2 $18 {[%emt 0:00:30]} Nb3 {[%emt 0:00:30]} 45. Ne4 {[%emt 0:00:30]} Ke7 {[%emt 0:00:30]} 46. Kg2 {[%emt 0:00:30]} Ke6 {[%emt 0:00:30][%cal Od4e5]} 47. Kf1 {[%emt 0:00:30]} (47. Be1 $16) 47... Bxe5 $1 $11 {[%emt 0:00:30] [#] Hoping for ...Kf5. The position is equal.} 48. Ke2 {[%emt 0:00:30]} ({Don't go for} 48. fxe5 $2 Kxe5 49. Nf2 Nxd2+ 50. Ke2 Nxc4 $19) 48... Bb2 {[%emt 0:00:30]} 49. a4 {[%emt 0:00:30]} Kf5 {[%emt 0:00:30]} 50. Nd6+ {[%emt 0:00:30]} Ke6 {[%emt 0:00:30]} 51. Ne4 {[%emt 0:00:30]} Nxd2 {[%emt 0:00:30]} 52. Kxd2 {[%emt 0:00:00] White really could win this.  Weighted Error Value: White=0.27 (precise) /Black=0.38} 1/2-1/2

[Event "Silver Lake Festival 2022"]
[Site "Veliko Gradiste"]
[Date "2022.06.20"]
[Round "3.12"]
[White "Saurabh Anand"]
[Black "Papaioannou, Dimitrios"]
[Result "0-1"]
[ECO "B45"]
[WhiteElo "2263"]
[BlackElo "2078"]
[Annotator "TA"]
[PlyCount "78"]
[EventDate "2022.06.16"]
[EventType "swiss"]
[EventCountry "SRB"]
[SourceTitle "playchess.com"]
[Source "ChessBase"]
[SourceQuality "1"]
[TimeControl "5400+30"]

{[%evp 27,78,0,0,16,6,0,19,-4,25,21,27,-35,-27,-66,-82,-67,-68,-70,-58,-100,-79,-145,-133,-215,-173,-191,-210,-197,-156,-1326,-1320,-1299,-1304,-1196,-336,-351,-348,-347,-359,-359,-359,-354,-347,-329,-314,-534,-525,-522,-522,-522,-482,-747,-724]} 1. e4 {[%emt 0:00:36]} c5 {[%emt 0:01:10]} 2. Nf3 {[%emt 0:01:22]} e6 {[%emt 0:00:09]} 3. d4 {[%emt 0:01:16]} cxd4 {[%emt 0:00:12]} 4. Nxd4 {[%emt 0:00:06]} Nf6 {[%emt 0:00:13]} 5. Nc3 {[%emt 0:00:10]} Nc6 {[%emt 0:00:07]} 6. Nxc6 {[%emt 0:02:00]} bxc6 {[%emt 0:00:07]} 7. e5 {[%emt 0:01:15]} Nd5 {[%emt 0:00:07]} 8. Ne4 {[%emt 0:00:11]} Qc7 {[%emt 0:00:15]} 9. f4 {[%emt 0:00:42]} Qb6 {[%emt 0:00:14]} 10. c4 {[%emt 0:00:47]} Bb4+ {[%emt 0:00:07]} 11. Ke2 {[%emt 0:00:32]} Ba6 {[%emt 0:00:07]} 12. Kf3 {[%emt 0:01:40]} f5 {[%emt 0:00:08]} 13. Nf2 {[%emt 0:02:15]} Ne7 {[%emt 0:00:07]} 14. Be3 {[%emt 0:08:42]} Bc5 {[%emt 0:00:06]} 15. Bxc5 {[%emt 0:06:43] B45: Sicilian Four Knights.} Qxc5 {[%emt 0:00:02]} 16. Qa4 {[%emt 0:02:12]} Bb7 {[%emt 0:06:04][%cal Og7g5]} 17. Qb3 $132 {[%emt 0:02:41][%mdl 2048] [#] White is fighting back. The position is equal.} O-O-O $146 {[%emt 0:07:01]} ({Predecessor:} 17... Qb6 18. c5 Qc7 19. Bc4 g5 20. g3 Rb8 21. Qa3 a5 22. h4 g4+ 23. Kg2 Nd5 {0-1 (47) Ivic,V (2628)-Perunovic,M (2543) Paracin 2022}) 18. Qe3 {[%emt 0:06:53]} Qa5 {[%emt 0:06:52]} 19. c5 {[%emt 0:03:11]} (19. Nd3 $11) 19... g5 {[%emt 0:01:51]} 20. g3 {[%emt 0:03:12]} gxf4 {[%emt 0:12:16]} 21. gxf4 {[%emt 0:00:08]} Nd5 {[%emt 0:00:52] Against Qc3} 22. Qd4 {[%emt 0:05:02]} Ba6 {[%emt 0:06:19] Black is more active.} 23. Bxa6+ {[%emt 0:01:07]} Qxa6 {[%emt 0:00:02]} 24. a4 {[%emt 0:01:16]} (24. Rad1 $142) 24... Qa5 $17 {[%emt 0:05:21]} 25. Rhb1 {[%emt 0:04:34] [#]} (25. Rhg1 $17) 25... Rdg8 $1 $19 {[%emt 0:04:59] And now ...Qd8 would win.} 26. Rg1 {[%emt 0:05:29]} Qd8 {[%emt 0:02:07]} 27. Rg3 {[%emt 0:00:06]} Qh4 {[%emt 0:01:17] Chess con chili.} 28. Rag1 $2 {[%emt 0:00:06]} (28. Rh3 $17 Qe7 29. Nd3) 28... Qh5+ {[%emt 0:01:56]} 29. Kg2 {[%emt 0:00:04]} Rxg3+ {[%emt 0:02:16]} 30. hxg3 {[%emt 0:00:12]} Rg8 $2 {[%emt 0:00:47]} (30... Qe2 31. Kh2 Ne3) 31. Kf1 {[%emt 0:00:21]} Qf3 {[%emt 0:05:08] White must now prevent ...Ne3+.} 32. Qd3 {[%emt 0:00:11]} Ne3+ {[%emt 0:01:04]} 33. Ke1 {[%emt 0:00:01]} Ng2+ {[%emt 0:00:44]} ({Weaker is} 33... Rxg3 34. Rxg3 Qxg3 35. Ke2 Qxf4 36. Qxe3 Qxa4 37. Nd3 $11) 34. Kf1 {[%emt 0:00:27] [#]} Qxd3+ {[%emt 0:00:42]} ({Not} 34... Ne3+ $2 35. Ke1 $19) 35. Nxd3 {[%emt 0:00:04]} Rxg3 {[%emt 0:00:58]} 36. Ne1 $2 {[%emt 0:01:17]} (36. Rxg2 Rxd3 37. Rg8+ Kc7 38. Kf2) 36... Ne3+ {[%emt 0:00:29] Black is clearly winning.} 37. Kf2 {[%emt 0:00:06]} Rxg1 {[%emt 0:00:08]} 38. Kxg1 {[%emt 0:00:01]} Kb7 {[%emt 0:00:56]} 39. Kf2 {[%emt 0:01:32]} (39. Nd3 $142 Nd5 40. Kg2) 39... Nd1+ {[%emt 0:00:26] White got outplayed after the opening.  Weighted Error Value: White=0.64/Black=0.28 (precise)} 0-1

[Event "Silver Lake Festival 2022"]
[Site "Veliko Gradiste"]
[Date "2022.06.21"]
[Round "4.1"]
[White "Zanan, Evgeny"]
[Black "Strikovic, Aleksa"]
[Result "1/2-1/2"]
[ECO "C41"]
[WhiteElo "2534"]
[BlackElo "2502"]
[Annotator "TA"]
[PlyCount "69"]
[EventDate "2022.06.16"]
[EventType "swiss"]
[EventCountry "SRB"]
[SourceTitle "playchess.com"]
[Source "ChessBase"]
[SourceQuality "1"]
[TimeControl "5400+30"]

{[%evp 16,69,36,34,47,28,24,22,24,24,27,14,15,14,23,13,25,29,20,25,34,36,15,16,58,18,13,5,4,1,10,0,0,0,6,15,14,0,23,0,25,2,27,0,0,0,0,0,0,0,0,0,0,0,15,11]} 1. e4 {[%emt 0:00:06]} d6 {[%emt 0:00:07]} 2. d4 {[%emt 0:00:06]} Nf6 {[%emt 0:00:04]} 3. Nc3 {[%emt 0:00:04]} e5 {[%emt 0:00:06]} 4. Nf3 {[%emt 0:00:13]} Nbd7 {[%emt 0:00:07]} 5. Bc4 {[%emt 0:00:08]} Be7 {[%emt 0:00:05]} 6. O-O {[%emt 0:00:16]} O-O {[%emt 0:00:05]} 7. a4 {[%emt 0:00:07]} c6 {[%emt 0:01:12]} 8. h3 {[%emt 0:02:34]} a5 {[%emt 0:00:23]} 9. Re1 {[%emt 0:00:59]} Nb6 $1 {[%emt 0:00:20] 9...Nb6 is better than 9...exd4. C41: Philidor Defence.} 10. Bf1 {[%emt 0:01:33]} ({But not} 10. dxe5 Nxc4 11. exf6 Bxf6 $11) 10... exd4 {[%emt 0:02:02]} 11. Nxd4 {[%emt 0:03:45]} d5 {[%emt 0:00:06]} 12. e5 {[%emt 0:00:04]} Ne8 {[%emt 0:00:05]} 13. Nce2 {[%emt 0:00:03]} g6 {[%emt 0:01:14]} 14. Bh6 {[%emt 0:00:18]} Ng7 $1 {[%emt 0:00:08]} 15. Nf4 {[%emt 0:00:23]} Bg5 {[%emt 0:03:44]} 16. Bxg5 {[%emt 0:01:53]} Qxg5 {[%emt 0:00:03] [#]} 17. g3 $146 {[%emt 0:06:56]} ({Predecessor:} 17. Qc1 Qe7 18. Qe3 Qc7 19. b3 Be6 20. Nf3 Rad8 21. Rac1 Rfe8 22. g4 Nd7 23. c4 dxc4 24. bxc4 {0-1 (36) Ortiz,M (2288)-Vorobjev,A (2102) LSS email 2018}) 17... Re8 {[%emt 0:10:49]} 18. h4 {[%emt 0:13:03]} Qd8 {[%emt 0:00:24]} 19. h5 {[%emt 0:08:48]} g5 {[%emt 0:16:35]} 20. Nd3 {[%emt 0:06:19]} (20. h6 $5 {[%cal Rh6g7]} gxf4 21. hxg7 $14) 20... h6 {[%emt 0:02:16]} 21. Qf3 {[%emt 0:10:35]} g4 {[%emt 0:16:06]} 22. Qf6 {[%emt 0:13:45]} Nf5 {[%emt 0:00:10]} 23. Qxd8 {[%emt 0:05:19]} Rxd8 {[%emt 0:00:02]} 24. c3 {[%emt 0:00:31]} Ng7 {[%emt 0:11:19]} 25. Nf4 {[%emt 0:00:53]} Re8 {[%emt 0:00:01]} 26. Bd3 {[%emt 0:03:47]} Bd7 {[%emt 0:03:54]} 27. Nb3 {[%emt 0:02:58]} Bf5 {[%emt 0:01:17]} 28. Nc5 {[%emt 0:05:03]} Bxd3 {[%emt 0:04:11]} (28... Bc8 {feels hotter.} 29. b4 Nd7 30. e6 fxe6 31. Ncxe6 Nxe6 32. Nxe6 Ne5) 29. Ncxd3 {[%emt 0:02:17]} Re7 {[%emt 0:01:40] The position is equal.} 30. b3 {[%emt 0:01:08]} Nd7 {[%emt 0:00:54]} 31. Re2 {[%emt 0:03:19]} Rae8 {[%emt 0:00:49][%cal Rd7e5]} 32. Rae1 {[%emt 0:00:06]} Ne6 {[%emt 0:00:13]} 33. Nxe6 {[%emt 0:01:05]} Rxe6 {[%emt 0:00:02]} 34. Kf1 {[%emt 0:01:20]} Kg7 {[%emt 0:26:57]} 35. c4 {[%emt 0:08:16] Weighted Error Value: White=0.06 (flawless) /Black=0.06 (flawless)} 1/2-1/2

[Event "Silver Lake Festival 2022"]
[Site "Veliko Gradiste"]
[Date "2022.06.21"]
[Round "4.2"]
[White "Stremavicius, Titas"]
[Black "Markovic, Zoran S"]
[Result "1-0"]
[ECO "A14"]
[WhiteElo "2508"]
[BlackElo "2313"]
[Annotator "TA"]
[PlyCount "119"]
[EventDate "2022.06.16"]
[EventType "swiss"]
[EventCountry "SRB"]
[SourceTitle "playchess.com"]
[Source "ChessBase"]
[SourceQuality "1"]
[TimeControl "5400+30"]

{[%evp 22,119,22,29,35,22,28,25,31,25,43,34,33,30,31,43,41,34,37,47,46,44,53,45,44,45,60,50,135,135,137,130,145,135,136,113,133,127,154,154,156,154,165,165,160,157,189,181,179,167,192,206,222,219,200,201,1127,1024,907,180,1325,1189,1167,1296,1000,454,1341,986,1160,624,804,120,29955,29956,29953,29958,29950,29958,29952,29956,29961,29963,29963,29964,29965,29963,29962,29961,29973,29971,29942,29960,6693,6406,29981,29982,29983,29984,29985,29986]} 1. c4 {[%emt 0:00:04]} e6 {[%emt 0:00:12]} 2. g3 {[%emt 0:00:30]} Nf6 {[%emt 0:00:30]} 3. Bg2 {[%emt 0:00:30]} d5 {[%emt 0:00:30]} 4. Nf3 {[%emt 0:00:30]} Be7 {[%emt 0:00:30]} 5. b3 {[%emt 0:00:30]} c5 {[%emt 0:00:30]} 6. e3 {[%emt 0:00:30]} Nc6 {[%emt 0:00:30]} 7. Bb2 {[%emt 0:00:30]} O-O {[%emt 0:00:00]} 8. O-O {[%emt 0:00:00]} b6 {[%emt 0:00:51]} 9. Nc3 {[%emt 0:00:07]} Bb7 {[%emt 0:01:14]} 10. cxd5 {[%emt 0:00:20]} Nxd5 {[%emt 0:00:50]} 11. Nxd5 {[%emt 0:00:16]} exd5 {[%emt 0:00:26]} 12. d4 {[%emt 0:00:13]} a5 {[%emt 0:00:57] is the legacy move (12...Bf6). A14: English Opening: 1...e6 with b3 by White.} 13. Qd2 {[%emt 0:06:21]} a4 {[%emt 0:13:36]} 14. Rfd1 {[%emt 0:00:11]} axb3 {[%emt 0:06:35] White has an edge.} 15. axb3 {[%emt 0:00:03]} Rxa1 {[%emt 0:00:30]} 16. Bxa1 {[%emt 0:00:04]} Qa8 {[%emt 0:10:26]} 17. Bc3 {[%emt 0:01:29]} Rd8 {[%emt 0:11:34]} 18. Qb2 {[%emt 0:00:20]} Bf8 {[%emt 0:02:33]} 19. Ne1 {[%emt 0:00:12]} cxd4 {[%emt 0:03:03]} 20. Bxd4 {[%emt 0:00:10]} Nxd4 21. Qxd4 {[#]} Bc5 $146 {[%emt 0:03:48]} ({Predecessor:} 21... Qa5 22. Nd3 Qb5 23. Qb2 Bd6 24. Nf4 Bxf4 25. gxf4 h6 26. Bf3 Bc8 27. b4 Bh3 {½-½ (48) Hickl,J (2617)-Sokolov,A (2606) Switzerland 2007}) 22. Qb2 {[%emt 0:24:28]} Be7 {[%emt 0:04:01]} 23. Qe5 {[%emt 0:04:26]} Bd6 {[%emt 0:04:50]} 24. Qf5 {[%emt 0:01:57][%cal Rg2d5]} Qa5 {[%emt 0:09:55]} (24... Bf8 $14) 25. Bxd5 $16 {[%emt 0:03:34]} Bxd5 {[%emt 0:00:58]} 26. Qxd5 {[%emt 0:00:03]} Qxd5 {[%emt 0:00:25]} 27. Rxd5 {[%emt 0:00:03][%mdl 4096] Endgame KRB-KRN} Be7 {[%emt 0:24:46]} 28. Rb5 {[%emt 0:02:46]} Rd6 {[%emt 0:00:00]} 29. Nf3 {[%emt 0:00:43]} Kf8 {[%emt 0:00:00]} 30. Ne5 {[%emt 0:00:37]} Bd8 {[%emt 0:00:00]} 31. Nc4 {[%emt 0:00:29]} Rc6 {[%emt 0:00:00]} 32. f4 {[%emt 0:04:02]} g6 {[%emt 0:00:00]} 33. Kg2 {[%emt 0:01:21] White is more active.} Bc7 {[%emt 0:00:00]} 34. e4 {[%emt 0:01:04]} Ke7 {[%emt 0:00:00]} 35. Kf3 {[%emt 0:00:03]} h5 {[%emt 0:00:00]} 36. h3 {[%emt 0:00:48][%cal Bh2h3,Bh3g4,Bg4g5][%mdl 32]} Ke6 {[%emt 0:00:00] [#]} 37. g4 $1 {[%emt 0:04:27]} hxg4+ {[%emt 0:00:00]} 38. hxg4 {[%emt 0:00:05]} Rc5 $2 {[%emt 0:00:00]} (38... Kd7 39. g5 Ke6) 39. Rxc5 $18 {[%emt 0:01:39]} bxc5 {[%emt 0:00:00] KB-KN} 40. Ke3 $2 {[%emt 0:12:52]} (40. e5 {Hoping for Ke4.} Kd5 41. Ne3+ Kd4 42. g5) 40... Bb8 $2 {[%emt 0:00:00]} (40... f6 41. Nb2 Bd8) 41. e5 {[%emt 0:07:00] Ke4 is the strong threat.} Kd5 {[%emt 0:03:40]} 42. g5 {[%emt 0:02:35]} Bc7 {[%emt 0:01:01]} 43. Kd3 {[%emt 0:00:05] Strongly threatening Ne3+.} Ke6 {[%emt 0:01:08]} 44. Ke4 {[%emt 0:03:08]} Bd8 {[%emt 0:00:38]} 45. Nd6 {[%emt 0:00:36]} Bc7 {[%emt 0:00:37] [#]} 46. Ne8 $2 {[%emt 0:02:02]} (46. Nb7 $1 $18 {[%cal Rb7c5] is the precise move to win.} Bb6 47. Kd3) 46... Bb8 $2 {[%emt 0:01:17][%mdl 8192] This move loses the game for Black.} (46... Ba5 $16 47. Nd6 Bd8) 47. Ng7+ {[%emt 0:01:06]} Ke7 {[%emt 0:00:16]} 48. f5 {[%emt 0:00:04]} gxf5+ {[%emt 0:00:20]} 49. Nxf5+ {[%emt 0:00:26]} Ke6 {[%emt 0:00:07]} 50. Ng7+ {[%emt 0:00:03]} Ke7 {[%emt 0:00:27]} 51. Kd5 {[%emt 0:01:21]} Bc7 {[%emt 0:01:04]} 52. Nf5+ {[%emt 0:00:05]} Kf8 {[%emt 0:00:43]} 53. Nd6 {[%emt 0:06:20]} Bd8 {[%emt 0:00:03]} 54. Ne4 {[%emt 0:00:05]} Be7 {[%emt 0:00:03]} 55. Kc6 {[%emt 0:00:23]} Ke8 {[%emt 0:00:52]} 56. Nf6+ {[%emt 0:00:19]} Kd8 {[%emt 0:00:33]} 57. Kd5 {[%emt 0:00:09] Intending e6 and mate.} Kc7 {[%emt 0:00:49]} 58. e6 {[%emt 0:00:11] White mates.} fxe6+ {[%emt 0:00:27]} 59. Kxe6 {[%emt 0:00:02]} Kd8 {[%emt 0:01:16]} 60. Kf7 {[%emt 0:00:06] Weighted Error Value: White=0.41/Black=0.31} 1-0